fUSD/lending_fUSD_20250930
["ID","MTS","AMOUNT","RATE_DAILY","PERIOD"]
[388587220,1759246283232,-500.0,0.00019452,2]
[388587221,1759246283242,-809.701173,0.00019452,2]
[388587222,1759246283252,-151.0,0.00019452,2]
[388587223,1759246283261,-809.70116904,0.00019452,2]
[388587224,1759246283271,-151.0,0.00019452,2]
[388587225,1759246283280,-2331.34,0.00019452,2]
[388587226,1759246283290,-500.0,0.00019452,2]
[388587227,1759246283299,-1285.52,0.00019452,2]
[388587228,1759246283309,-151.0,0.00019452,2]
[388587229,1759246283322,-151.0,0.00019452,2]
[388587230,1759246283332,-731.087657,0.00019452,2]
[388587231,1759246283346,-4420.41,0.00019452,2]
[388587232,1759246283356,-500.0,0.00019452,2]
[388587233,1759246283366,-600.48,0.00019452,2]
[388587234,1759246283376,-151.0,0.00019452,2]
[388587235,1759246283387,-500.0,0.00019452,2]
[388587236,1759246283396,-151.0,0.00019452,2]
[388587237,1759246283406,-4081.83,0.00019452,2]
[388587238,1759246283416,-500.0,0.00019452,2]
[388587239,1759246283426,-500.0,0.00019452,2]
[388587240,1759246283435,-500.0,0.00019452,2]
[388587241,1759246283445,-500.0,0.00019452,2]
[388587242,1759246283454,-2307.17,0.00019452,2]
[388587243,1759246283464,-500.0,0.00019452,2]
[388587244,1759246283473,-500.0,0.00019452,2]
[388587245,1759246283483,-17236.64,0.00019452,2]
[388587246,1759246283492,-2469.04,0.00019452,2]
[388587247,1759246283502,-534.3132786,0.00019452,2]
[388587248,1759246283511,-500.0,0.00019452,2]
[388587249,1759246283521,-500.0,0.00019452,2]
[388587250,1759246283531,-500.0,0.00019452,2]
[388587251,1759246283540,-2029.55,0.00019452,2]
[388587252,1759246283550,-151.0,0.00019452,2]
[388587253,1759246283559,-151.0,0.00019452,2]
[388587254,1759246283570,-500.0,0.00019452,2]
[388587255,1759246283579,-500.0,0.00019452,2]
[388587256,1759246283590,-1123.53,0.00019452,2]
[388587257,1759246283600,-500.0,0.00019452,2]
[388587258,1759246283610,-3068.64,0.00019452,2]
[388587259,1759246283619,-582.51,0.00019452,2]
[388587260,1759246283629,-500.0,0.00019452,2]
[388587261,1759246283639,-500.0,0.00019452,2]
[388587262,1759246283648,-500.0,0.00019452,2]
[388587263,1759246283658,-5035.91,0.00019452,2]
[388587264,1759246283667,-535.69,0.00019452,2]
[388587265,1759246283676,-500.0,0.00019452,2]
[388587266,1759246283686,-4894.6,0.00019452,2]
[388587267,1759246283696,-803.1,0.00019452,2]
[388587268,1759246283706,-500.0,0.00019452,2]
[388587269,1759246283715,-2776.79,0.00019452,2]
[388587270,1759246283725,-599.02,0.00019452,2]
[388587271,1759246283734,-500.0,0.00019452,2]
[388587272,1759246283743,-589.87,0.00019452,2]
[388587273,1759246283753,-416.679267,0.00019452,2]
[388587274,1759246283763,-416.679267,0.00019452,2]
[388587275,1759246283772,-416.679267,0.00019452,2]
[388587276,1759246283781,-416.679267,0.00019452,2]
[388587277,1759246283791,-500.0,0.00019452,2]
[388587278,1759246283801,-416.679267,0.00019452,2]
[388587279,1759246284192,-416.679267,0.00019452,2]
[388587280,1759246284208,-500.0,0.00019452,2]
[388587281,1759246284217,-416.679267,0.00019452,2]
[388587282,1759246284227,-416.679267,0.00019452,2]
[388587283,1759246284237,-5539.46,0.00019452,2]
[388587284,1759246284247,-500.0,0.00019452,2]
[388587285,1759246284257,-500.0,0.00019452,2]
[388587286,1759246284267,-1990.07,0.00019452,2]
[388587287,1759246284277,-3720.94,0.00019452,2]
[388587288,1759246284287,-1323.14,0.00019452,2]
[388587289,1759246284297,-770.21,0.00019452,2]
[388587290,1759246284307,-842.76,0.00019452,2]
[388587291,1759246284317,-3292.83,0.00019452,2]
[388587292,1759246284334,-3895.89,0.00019452,2]
[388587293,1759246284346,-622.5,0.00019452,2]
[388587294,1759246284356,-3647.21,0.00019452,2]
[388587295,1759246284367,-787.38,0.00019452,2]
[388587296,1759246284377,-500.0,0.00019452,2]
[388587297,1759246284387,-500.0,0.00019452,2]
[388587298,1759246284399,-679.72,0.00019452,2]
[388587299,1759246284410,-1562.64,0.00019452,2]
[388587300,1759246284420,-151.0,0.00019452,2]
[388587301,1759246284430,-259.902667,0.00019452,2]
[388587302,1759246284439,-614.02,0.00019452,2]
[388587303,1759246284449,-500.0,0.00019452,2]
[388587304,1759246284459,-12282.2,0.00019452,2]
[388587305,1759246284468,-500.0,0.00019452,2]
[388587306,1759246284479,-151.0,0.00019452,2]
[388587307,1759246284488,-500.0,0.00019452,2]
[388587308,1759246284498,-151.0,0.00019452,2]
[388587309,1759246284508,-628.739633,0.00019452,2]
[388587310,1759246284517,-500.0,0.00019452,2]
[388587311,1759246284527,-628.739633,0.00019452,2]
[388587312,1759246284537,-500.0,0.00019452,2]
[388587313,1759246284546,-646.09,0.00019452,2]
[388587314,1759246284556,-628.739633,0.00019452,2]
[388587315,1759246284566,-628.739633,0.00019452,2]
[388587316,1759246284578,-500.0,0.00019452,2]
[388587317,1759246284590,-1373.24,0.00019452,2]
[388587318,1759246284600,-151.0,0.00019452,2]
[388587319,1759246284611,-151.0,0.00019452,2]
[388587320,1759246284621,-500.0,0.00019452,2]
[388587321,1759246284632,-151.0,0.00019452,2]
[388587322,1759246284641,-1739.88,0.00019452,2]
[388587323,1759246284652,-151.0,0.00019452,2]
[388587324,1759246284662,-500.0,0.00019452,2]
[388587325,1759246284672,-2249.95,0.00019452,2]
[388587326,1759246284682,-151.0,0.00019452,2]
[388587327,1759246284692,-151.0,0.00019452,2]
[388587328,1759246284702,-628.739633,0.00019452,2]
[388587329,1759246284711,-628.739633,0.00019452,2]
[388587330,1759246284721,-3071.32,0.00019452,2]
[388587331,1759246284732,-151.0,0.00019452,2]
[388587332,1759246284742,-500.0,0.00019452,2]
[388587333,1759246284752,-151.0,0.00019452,2]
[388587334,1759246284761,-2082.41,0.00019452,2]
[388587335,1759246284771,-500.0,0.00019452,2]
[388587336,1759246284781,-1629.45,0.00019452,2]
[388587337,1759246284790,-3668.68,0.00019452,2]
[388587338,1759246284800,-3762.23,0.00019452,2]
[388587339,1759246284809,-3134.62,0.00019452,2]
[388587340,1759246284821,-500.0,0.00019452,2]
[388587341,1759246284830,-628.739633,0.00019452,2]
[388587342,1759246284842,-628.739632,0.00019452,2]
[388587343,1759246284851,-500.0,0.00019452,2]
[388587344,1759246284860,-500.0,0.00019452,2]
[388587345,1759246284871,-500.0,0.00019452,2]
[388587346,1759246284882,-518.16,0.00019452,2]
[388587347,1759246284891,-500.0,0.00019452,2]
[388587348,1759246284901,-636.82,0.00019452,2]
[388587349,1759246284913,-3306.06,0.00019452,2]
[388587350,1759246284923,-337.639549,0.00019452,2]
[388587351,1759246284933,-612.9,0.00019452,2]
[388587352,1759246284942,-500.0,0.00019452,2]
[388587353,1759246284953,-500.0,0.00019452,2]
[388587354,1759246284964,-500.0,0.00019452,2]
[388587355,1759246284974,-964.22,0.00019452,2]
[388587356,1759246284984,-151.0,0.00019452,2]
[388587357,1759246284995,-151.0,0.00019452,2]
[388587358,1759246285005,-3545.68,0.00019452,2]
[388587359,1759246285015,-18778.46,0.00019452,2]
[388587360,1759246285032,-1239.87,0.00019452,2]
[388587361,1759246285045,-500.0,0.00019452,2]
[388587362,1759246285055,-4476.62,0.00019452,2]
[388587363,1759246285067,-151.0,0.00019452,2]
[388587364,1759246285077,-151.0,0.00019452,2]
[388587365,1759246285088,-3480.69,0.00019452,2]
[388587366,1759246285099,-151.0,0.00019452,2]
[388587367,1759246285109,-151.0,0.00019452,2]
[388587368,1759246285119,-151.0,0.00019452,2]
[388587369,1759246285129,-500.0,0.00019452,2]
[388587370,1759246285139,-151.0,0.00019452,2]
[388587371,1759246285148,-151.0,0.00019452,2]
[388587372,1759246285159,-2560.24,0.00019452,2]
[388587373,1759246285169,-151.0,0.00019452,2]
[388587374,1759246285178,-151.0,0.00019452,2]
[388587375,1759246285189,-4332.59,0.00019452,2]
[388587376,1759246285198,-500.0,0.00019452,2]
[388587377,1759246285208,-1324.76,0.00019452,2]
[388587378,1759246285217,-3046.09,0.00019452,2]
[388587379,1759246285227,-500.0,0.00019452,2]
[388587380,1759246285237,-3894.44,0.00019452,2]
[388587381,1759246285247,-5206.27,0.00019452,2]
[388587382,1759246285259,-915.79,0.00019452,2]
[388587383,1759246285268,-4126.68,0.00019452,2]
[388587384,1759246285279,-500.0,0.00019452,2]
[388587385,1759246285289,-10311.53,0.00019452,2]
[388587386,1759246285299,-151.0,0.00019452,2]
[388587387,1759246285309,-500.0,0.00019452,2]
[388587388,1759246285321,-5602.77,0.00019452,2]
[388587389,1759246285331,-296.816516,0.00019452,2]
[388587390,1759246285342,-500.0,0.00019452,2]
[388587391,1759246285352,-1282.5,0.00019452,2]
[388587392,1759246285362,-500.0,0.00019452,2]
[388587393,1759246285371,-500.0,0.00019452,2]
[388587394,1759246285380,-3833.9,0.00019452,2]
[388587395,1759246285390,-3942.29,0.00019452,2]
[388587396,1759246285400,-5037.2,0.00019452,2]
[388587397,1759246285409,-500.0,0.00019452,2]
[388587398,1759246285419,-703.44,0.00019452,2]
[388587399,1759246285428,-4837.09,0.00019452,2]
[388587400,1759246285437,-500.0,0.00019452,2]
[388587401,1759246285447,-500.0,0.00019452,2]
[388587402,1759246285457,-3222.19,0.00019452,2]
[388587403,1759246285467,-3184.79,0.00019452,2]
[388587404,1759246285476,-5309.29,0.00019452,2]
[388587405,1759246285486,-3202.95,0.00019452,2]
[388587406,1759246285496,-500.0,0.00019452,2]
[388587407,1759246285506,-500.0,0.00019452,2]
[388587408,1759246285516,-151.0,0.00019452,2]
[388587409,1759246285525,-151.0,0.00019452,2]
[388587410,1759246285536,-158.129448,0.00019452,2]
[388587411,1759246285546,-158.129448,0.00019452,2]
[388587412,1759246285556,-151.0,0.00019452,2]
[388587413,1759246285566,-388.31535718,0.00019452,2]
[388587414,1759246285576,-151.0,0.00019452,2]
[388587415,1759246285587,-950.768708,0.00019452,2]
[388587416,1759246285598,-1568.57,0.00019452,2]
[388587417,1759246285609,-950.768708,0.00019452,2]
[388587418,1759246285620,-1844.88,0.00019452,2]
[388587419,1759246285630,-7963.67,0.00019452,2]
[388587420,1759246285641,-158.129448,0.00019452,2]
[388587421,1759246285654,-151.0,0.00019452,2]
[388587422,1759246285670,-721.68,0.00019452,2]
[388587423,1759246285681,-158.129448,0.00019452,2]
[388587424,1759246285691,-151.0,0.00019452,2]
[388587425,1759246285701,-7321.33,0.00019452,2]
[388587426,1759246285712,-557.63,0.00019452,2]
[388587427,1759246285722,-810.92,0.00019452,2]
[388587428,1759246285732,-950.768708,0.00019452,2]
[388587429,1759246285742,-950.768708,0.00019452,2]
[388587430,1759246285752,-3637.94,0.00019452,2]
[388587431,1759246285762,-158.129448,0.00019452,2]
[388587432,1759246285772,-158.129448,0.00019452,2]
[388587433,1759246285783,-950.768708,0.00019452,2]
[388587434,1759246285794,-950.768708,0.00019452,2]
[388587435,1759246285804,-1289.42,0.00019452,2]
[388587436,1759246285814,-2252.6,0.00019452,2]
[388587437,1759246285824,-4314.6,0.00019452,2]
[388587438,1759246285834,-158.129448,0.00019452,2]
[388587439,1759246285846,-158.129455,0.00019452,2]
[388587440,1759246285856,-500.0,0.00019452,2]
[388587441,1759246285866,-950.768708,0.00019452,2]
[388587442,1759246285875,-6308.86,0.00019452,2]
[388587443,1759246285886,-950.768699,0.00019452,2]
[388587444,1759246285896,-500.0,0.00019452,2]
[388587445,1759246285906,-500.0,0.00019452,2]
[388587446,1759246285916,-701.55,0.00019452,2]
[388587447,1759246285926,-4217.23,0.00019452,2]
[388587448,1759246285936,-2853.18,0.00019452,2]
[388587449,1759246285946,-500.0,0.00019452,2]
[388587450,1759246285956,-500.0,0.00019452,2]
[388587451,1759246285966,-500.0,0.00019452,2]
[388587452,1759246285976,-2067.5,0.00019452,2]
[388587453,1759246285986,-151.0,0.00019452,2]
[388587454,1759246285996,-3408.13,0.00019452,2]
[388587455,1759246286006,-9687.01,0.00019452,2]
[388587456,1759246286016,-151.0,0.00019452,2]
[388587457,1759246286026,-151.0,0.00019452,2]
[388587458,1759246286036,-4433.48,0.00019452,2]
[388587459,1759246286046,-5575.77,0.00019452,2]
[388587460,1759246286055,-151.0,0.00019452,2]
[388587461,1759246286065,-500.0,0.00019452,2]
[388587462,1759246286075,-3582.51,0.00019452,2]
[388587463,1759246286084,-151.0,0.00019452,2]
[388587464,1759246286096,-2444.13,0.00019452,2]
[388587465,1759246286106,-151.0,0.00019452,2]
[388587466,1759246286116,-814.25,0.00019452,2]
[388587467,1759246286126,-500.0,0.00019452,2]
[388587468,1759246286137,-1324.63,0.00019452,2]
[388587469,1759246286147,-500.0,0.00019452,2]
[388587470,1759246286157,-618.74755942,0.00019452,2]
[388587471,1759246286167,-2971.34,0.00019452,2]
[388587472,1759246286177,-3104.67,0.00019452,2]
[388587473,1759246286188,-11427.76,0.00019452,2]
[388587474,1759246286199,-500.0,0.00019452,2]
[388587475,1759246286208,-500.0,0.00019452,2]
[388587476,1759246286218,-500.0,0.00019452,2]
[388587477,1759246286228,-151.0,0.00019452,2]
[388587478,1759246286239,-151.0,0.00019452,2]
[388587479,1759246286249,-4088.09,0.00019452,2]
[388587480,1759246286258,-791.86,0.00019452,2]
[388587481,1759246286267,-500.0,0.00019452,2]
[388587482,1759246286275,-246.630755,0.00019452,2]
[388587483,1759246286294,-818.99,0.00019452,2]
[388587484,1759246286304,-5601.94,0.00019452,2]
[388587485,1759246286314,-3178.75,0.00019452,2]
[388587486,1759246286329,-500.0,0.00019452,2]
[388587487,1759246286339,-500.0,0.00019452,2]
[388587488,1759246286348,-246.630755,0.00019452,2]
[388587489,1759246286359,-854.016184,0.00019452,2]
[388587490,1759246286370,-500.0,0.00019452,2]
[388587491,1759246286380,-3428.1,0.00019452,2]
[388587492,1759246286390,-812.27,0.00019452,2]
[388587493,1759246286402,-246.630755,0.00019452,2]
[388587494,1759246286411,-500.0,0.00019452,2]
[388587495,1759246286421,-391.104971,0.00019452,2]
[388587496,1759246286431,-6990.56598,0.00019452,2]
[388587497,1759246286441,-2009.05,0.00019452,2]
[388587498,1759246286451,-2583.72,0.00019452,2]
[388587499,1759246286461,-2100.28,0.00019452,2]
[388587500,1759246286472,-246.630754,0.00019452,2]
[388587501,1759246286482,-3180.64,0.00019452,2]
[388587502,1759246286492,-872.83,0.00019452,2]
[388587503,1759246286502,-731.087656,0.00019452,2]
[388587504,1759246286512,-6990.56598,0.00019452,2]
[388587505,1759246286522,-391.104971,0.00019452,2]
[388587506,1759246286532,-3259.44,0.00019452,2]
[388587507,1759246286542,-4655.15,0.00019452,2]
[388587508,1759246286552,-539.85440849,0.00019452,2]
[388587509,1759246286561,-675.680683,0.00019452,2]
[388587510,1759246286572,-391.104971,0.00019452,2]
[388587511,1759246286581,-598.2,0.00019452,2]
[388587512,1759246286592,-6990.56598,0.00019452,2]
[388587513,1759246286601,-1264.61,0.00019452,2]
[388587514,1759246286611,-2065.22,0.00019452,2]
[388587515,1759246286621,-500.0,0.00019452,2]
[388587516,1759246286631,-675.680683,0.00019452,2]
[388587517,1759246286640,-391.104972,0.00019452,2]
[388587518,1759246286650,-500.0,0.00019452,2]
[388587519,1759246286660,-6990.565985,0.00019452,2]
[388587520,1759246286670,-1074.54,0.00019452,2]
[388587521,1759246286679,-500.0,0.00019452,2]
[388587522,1759246286690,-675.680683,0.00019452,2]
[388587523,1759246286718,-500.0,0.00019452,2]
[388587524,1759246286728,-2292.66,0.00019452,2]
[388587525,1759246286738,-500.0,0.00019452,2]
[388587526,1759246286748,-737.86,0.00019452,2]
[388587527,1759246286759,-3708.48,0.00019452,2]
[388587528,1759246286770,-4093.1,0.00019452,2]
[388587529,1759246286779,-675.68068,0.00019452,2]
[388587530,1759246286789,-634.55,0.00019452,2]
[388587531,1759246286799,-3228.48,0.00019452,2]
[388587532,1759246286808,-500.0,0.00019452,2]
[388587533,1759246286818,-949.13,0.00019452,2]
[388587534,1759246286827,-673.51,0.00019452,2]
[388587535,1759246286837,-500.0,0.00019452,2]
[388587536,1759246286847,-3104.32,0.00019452,2]
[388587537,1759246286856,-500.0,0.00019452,2]
[388587538,1759246286866,-8635.78,0.00019452,2]
[388587539,1759246286875,-151.0,0.00019452,2]
[388587540,1759246286884,-5292.52,0.00019452,2]
[388587541,1759246286894,-3127.17,0.00019452,2]
[388587542,1759246286904,-1196.77,0.00019452,2]
[388587543,1759246286914,-151.0,0.00019452,2]
[388587544,1759246286924,-2288.45,0.00019452,2]
[388587545,1759246286933,-261.334111,0.00019452,2]
[388587546,1759246286942,-1781.58,0.00019452,2]
[388587547,1759246286952,-224.911754,0.00019452,2]
[388587548,1759246286961,-500.0,0.00019452,2]
[388587549,1759246286971,-261.334111,0.00019452,2]
[388587550,1759246286980,-2737.98,0.00019452,2]
[388587551,1759246286990,-500.0,0.00019452,2]
[388587552,1759246286999,-500.0,0.00019452,2]
[388587553,1759246287007,-4544.53,0.00019452,2]
[388587554,1759246287017,-261.334111,0.00019452,2]
[388587555,1759246287026,-500.0,0.00019452,2]
[388587556,1759246287035,-622.53405494,0.00019452,2]
[388587557,1759246287044,-2797.9,0.00019452,2]
[388587558,1759246287054,-827.76,0.00019452,2]
[388587559,1759246287064,-9263.16,0.00019452,2]
[388587560,1759246287074,-261.334111,0.00019452,2]
[388587561,1759246287084,-4494.67,0.00019452,2]
[388587562,1759246287096,-500.0,0.00019452,2]
[388587563,1759246287106,-6531.02,0.00019452,2]
[388587564,1759246287115,-824.01,0.00019452,2]
[388587565,1759246287126,-8791.84,0.00019452,2]
[388587566,1759246287136,-500.0,0.00019452,2]
[388587567,1759246287146,-500.0,0.00019452,2]
[388587568,1759246287155,-500.0,0.00019452,2]
[388587569,1759246287165,-952.81,0.00019452,2]
[388587570,1759246287175,-952.81,0.00019452,2]
[388587571,1759246287185,-500.0,0.00019452,2]
[388587572,1759246287194,-500.0,0.00019452,2]
[388587573,1759246287204,-500.0,0.00019452,2]
[388587574,1759246287214,-538.94,0.00019452,2]
[388587575,1759246287224,-2577.74,0.00019452,2]
[388587576,1759246287234,-5040.71,0.00019452,2]
[388587577,1759246287244,-650.4,0.00019452,2]
[388587578,1759246287254,-623.3,0.00019452,2]
[388587579,1759246287263,-3264.65,0.00019452,2]
[388587580,1759246287273,-500.0,0.00019452,2]
[388587581,1759246287283,-500.0,0.00019452,2]
[388587582,1759246287293,-7688.96,0.00019452,2]
[388587583,1759246287304,-500.0,0.00019452,2]
[388587584,1759246287313,-151.0,0.00019452,2]
[388587585,1759246287327,-2676.52,0.00019452,2]
[388587586,1759246287339,-2401.46,0.00019452,2]
[388587587,1759246287348,-2415.47,0.00019452,2]
[388587588,1759246287358,-409.52629134,0.00019452,2]
[388587589,1759246287367,-2841.3,0.00019452,2]
[388587590,1759246287376,-1050.279348,0.00019452,2]
[388587591,1759246287385,-1043.47,0.00019452,2]
[388587592,1759246287395,-500.0,0.00019452,2]
[388587593,1759246287404,-500.0,0.00019452,2]
[388587594,1759246287414,-1304.88,0.00019452,2]
[388587595,1759246287424,-385.60579,0.00019452,2]
[388587596,1759246287434,-1050.279348,0.00019452,2]
[388587597,1759246287444,-500.0,0.00019452,2]
[388587598,1759246287455,-385.60579,0.00019452,2]
[388587599,1759246287465,-1050.279348,0.00019452,2]
[388587600,1759246287475,-500.0,0.00019452,2]
[388587601,1759246287485,-587.2,0.00019452,2]
[388587602,1759246287496,-1050.279348,0.00019452,2]
[388587603,1759246287507,-385.60579,0.00019452,2]
[388587604,1759246287518,-2326.48,0.00019452,2]
[388587605,1759246287529,-500.0,0.00019452,2]
[388587606,1759246287539,-19914.23,0.00019452,2]
[388587607,1759246287549,-682.89,0.00019452,2]
[388587608,1759246287558,-500.0,0.00019452,2]
[388587609,1759246287568,-500.0,0.00019452,2]
[388587610,1759246287579,-835.76,0.00019452,2]
[388587611,1759246287590,-385.60579,0.00019452,2]
[388587612,1759246287599,-6660.32,0.00019452,2]
[388587613,1759246287609,-500.0,0.00019452,2]
[388587614,1759246287620,-500.0,0.00019452,2]
[388587615,1759246287629,-2723.14,0.00019452,2]
[388587616,1759246287638,-565.44480509,0.00019452,2]
[388587617,1759246287648,-500.0,0.00019452,2]
[388587618,1759246287659,-2954.04,0.00019452,2]
[388587619,1759246287669,-530.75,0.00019452,2]
[388587620,1759246287680,-500.0,0.00019452,2]
[388587621,1759246287690,-500.0,0.00019452,2]
[388587622,1759246287699,-500.0,0.00019452,2]
[388587623,1759246287710,-500.0,0.00019452,2]
[388587624,1759246287719,-500.0,0.00019452,2]
[388587625,1759246287728,-3047.16,0.00019452,2]
[388587626,1759246287737,-500.0,0.00019452,2]
[388587627,1759246287745,-500.0,0.00019452,2]
[388587628,1759246287753,-3385.36,0.00019452,2]
[388587629,1759246287763,-2622.66,0.00019452,2]
[388587630,1759246287772,-500.0,0.00019452,2]
[388587631,1759246287781,-2609.92,0.00019452,2]
[388587632,1759246287789,-500.0,0.00019452,2]
[388587633,1759246287798,-7942.2,0.00019452,2]
[388587634,1759246287807,-739.07,0.00019452,2]
[388587635,1759246287816,-9633.86,0.00019452,2]
[388587636,1759246287826,-500.0,0.00019452,2]
[388587637,1759246287836,-835.53,0.00019452,2]
[388587638,1759246287846,-500.0,0.00019452,2]
[388587639,1759246287856,-3050.74,0.00019452,2]
[388587640,1759246287867,-500.0,0.00019452,2]
[388587641,1759246287878,-1600.14,0.00019452,2]
[388587642,1759246287887,-1420.36,0.00019452,2]
[388587643,1759246287897,-500.0,0.00019452,2]
[388587644,1759246287908,-500.0,0.00019452,2]
[388587645,1759246287918,-1466.9,0.00019452,2]
[388587646,1759246287927,-4685.47,0.00019452,2]
[388587647,1759246287936,-500.0,0.00019452,2]
[388587648,1759246287945,-6705.33,0.00019452,2]
[388587649,1759246287954,-22451.0,0.00019452,2]
[388587650,1759246287964,-500.0,0.00019452,2]
[388587651,1759246287975,-2318.18,0.00019452,2]
[388587652,1759246287984,-622.61214162,0.00019452,2]
[388587653,1759246287995,-1759.63,0.00019452,2]
[388587654,1759246288005,-1047.92,0.00019452,2]
[388587655,1759246288019,-4834.6,0.00019452,2]
[388587656,1759246288039,-500.0,0.00019452,2]
[388587657,1759246288057,-2716.66,0.00019452,2]
[388587658,1759246288069,-500.0,0.00019452,2]
[388587659,1759246288085,-552.85,0.00019452,2]
[388587660,1759246288100,-500.0,0.00019452,2]
[388587661,1759246288117,-500.0,0.00019452,2]
[388587662,1759246288133,-500.0,0.00019452,2]
[388587663,1759246288148,-500.0,0.00019452,2]
[388587664,1759246288162,-500.0,0.00019452,2]
[388587665,1759246288174,-2583.5,0.00019452,2]
[388587666,1759246288189,-500.0,0.00019452,2]
[388587667,1759246288204,-1715.07,0.00019452,2]
[388587668,1759246288219,-1859.68,0.00019452,2]
[388587669,1759246288236,-696.79,0.00019452,2]
[388587670,1759246288253,-1628.79560974,0.00019452,2]
[388587671,1759246289858,-151.0,0.00019178,2]
[388587672,1759246289870,-138.9999998,0.000194,2]
[388587673,1759246289883,-585.4091522,0.000194,2]
[388587674,1759246289895,-551.0398478,0.00019452,2]
[388587675,1759246289909,-773.21724996,0.00019452,2]
[388587676,1759246289923,-618.7472925,0.00019452,2]
[388587677,1759246289936,-2519.47991569,0.00019452,2]
[388587678,1759246289998,-193.001754,0.00017,2]
[388587679,1759246290010,-554.99824614,0.00019452,2]
[388587680,1759246290025,-992.34122321,0.00019452,2]
[388587681,1759246290039,-573.06061496,0.00019452,2]
[388587682,1759246290051,-676.06339119,0.00019452,2]
[388587683,1759246290077,-407.603,0.00019452,2]
[388587684,1759246290092,-587.94752352,0.00019452,2]
[388587685,1759246290137,-152.349369,0.00019177,2]
[388587686,1759246290149,-1238.43,0.00019178,2]
[388587687,1759246290161,-500.0,0.00019178,2]
[388587688,1759246290173,-3048.22608529,0.00019452,2]
[388587689,1759246290185,-1922.31094843,0.00019452,2]
[388587690,1759246292315,-193.001754,0.00017,2]
[388587691,1759246292328,-193.001754,0.000191,2]
[388587692,1759246292337,-151.0,0.00019177,2]
[388587693,1759246292347,-500.0,0.00019178,2]
[388587694,1759246292357,-151.0,0.00019178,2]
[388587695,1759246292367,-500.0,0.00019178,2]
[388587696,1759246292377,-151.0,0.00019178,2]
[388587697,1759246292387,-151.0,0.00019178,2]
[388587698,1759246292397,-500.0,0.00019178,2]
[388587699,1759246292406,-193.001754,0.00019178,2]
[388587700,1759246292415,-151.0,0.00019178,2]
[388587701,1759246292425,-500.0,0.00019178,2]
[388587702,1759246292434,-500.0,0.00019178,2]
[388587703,1759246292444,-193.001754,0.00019178,2]
[388587704,1759246292453,-298.940506,0.00019178,2]
[388587705,1759246292462,-500.0,0.00019178,2]
[388587706,1759246292471,-277.78213968,0.00019178,2]
[388587707,1759246292480,-500.0,0.00019178,2]
[388587708,1759246292489,-151.0,0.00019178,2]
[388587709,1759246292499,-151.0,0.000194,2]
[388587710,1759246292507,-193.001754,0.000194,2]
[388587711,1759246292517,-1224.10849777,0.00019452,2]
[388587712,1759246292566,-151.0,0.00017,2]
[388587713,1759246292575,-606.08,0.00019178,2]
[388587714,1759246292584,-902.08677442,0.00019452,2]
[388587715,1759246292654,-193.001754,0.000191,2]
[388587716,1759246292663,-319.76627406,0.00019178,2]
[388587717,1759246292925,-1640.50372594,0.00019178,2]
[388587718,1759246292935,-500.0,0.00019178,2]
[388587719,1759246292944,-151.0,0.00019178,2]